[Event "The Schackveckan 2023: Göteborg open"]
[Site "Göteborgs schackcentrum, Vegagatan 20, Gothenburg, Sweden"]
[Date "2023.08.11"]
[Round "2.14"]
[White "Thern, Alfred"]
[Black "Lindhe Nilsson, Filip"]
[Result "1-0"]
[TimeControl "15 minutes + 5 seconds per move from move one (Round 1 - 4) / 90 minutes + 30 seconds per move from move one (Round 5 - 8)"]
[WhiteFideId "1775227"]
[BlackFideId "1779826"]
[WhiteElo "1643"]
[BlackElo "1818"]

1. e4 {[%clk 00:15:08]} {[%emt 00:00:02]} c6 {[%clk 00:15:09]} {[%emt
00:00:01]} 2. d4 {[%clk 00:15:12]} {[%emt 00:00:02]} d5 {[%clk 00:15:12]}
{[%emt 00:00:01]} 3. e5 {[%clk 00:15:15]} {[%emt 00:00:01]} c5 {[%clk
00:15:16]} {[%emt 00:00:02]} 4. dxc5 {[%clk 00:15:18]} {[%emt 00:00:02]} Nc6
{[%clk 00:15:19]} {[%emt 00:00:02]} 5. Nf3 {[%clk 00:15:19]} {[%emt 00:00:03]}
Bg4 {[%clk 00:15:22]} {[%emt 00:00:02]} 6. c3 {[%clk 00:15:23]} {[%emt
00:00:02]} Nxe5 {[%clk 00:14:55]} {[%emt 00:00:32]} 7. Nxe5 {[%clk 00:15:17]}
{[%emt 00:00:12]} Bd7 {[%clk 00:14:00]} {[%emt 00:00:59]} 8. Nxd7 {[%clk
00:15:10]} {[%emt 00:00:13]} Qxd7 {[%clk 00:14:03]} {[%emt 00:00:02]} 9. Qb3
{[%clk 00:14:47]} {[%emt 00:00:28]} a6 {[%clk 00:13:56]} {[%emt 00:00:12]} 10.
Be3 {[%clk 00:14:11]} {[%emt 00:00:41]} e5 {[%clk 00:13:37]} {[%emt 00:00:23]}
11. Bd3 {[%clk 00:13:44]} {[%emt 00:00:32]} Nf6 {[%clk 00:13:24]} {[%emt
00:00:18]} 12. O-O {[%clk 00:13:24]} {[%emt 00:00:26]} Ng4 {[%clk 00:12:28]}
{[%emt 00:01:01]} 13. Nd2 {[%clk 00:12:29]} {[%emt 00:01:00]} Nxe3 {[%clk
00:12:13]} {[%emt 00:00:19]} 14. fxe3 {[%clk 00:12:32]} {[%emt 00:00:02]} Bxc5
{[%clk 00:12:01]} {[%emt 00:00:18]} 15. Rae1 {[%clk 00:11:52]} {[%emt
00:00:45]} O-O {[%clk 00:11:35]} {[%emt 00:00:31]} 16. Bf5 {[%clk 00:11:30]}
{[%emt 00:00:27]} Qd6 {[%clk 00:10:32]} {[%emt 00:01:06]} 17. Qc2 {[%clk
00:11:11]} {[%emt 00:00:26]} Kh8 {[%clk 00:10:02]} {[%emt 00:00:34]} 18. b4
{[%clk 00:10:34]} {[%emt 00:00:42]} Ba7 {[%clk 00:09:48]} {[%emt 00:00:19]} 19.
Kh1 {[%clk 00:10:03]} {[%emt 00:00:37]} Qh6 {[%clk 00:09:04]} {[%emt 00:00:48]}
20. Rf3 {[%clk 00:09:23]} {[%emt 00:00:46]} g6 {[%clk 00:08:37]} {[%emt
00:00:32]} 21. Rh3 {[%clk 00:09:01]} {[%emt 00:00:28]} Qg5 {[%clk 00:07:57]}
{[%emt 00:00:44]} 22. Bd3 {[%clk 00:08:43]} {[%emt 00:00:23]} e4 {[%clk
00:07:15]} {[%emt 00:00:48]} 23. Bf1 {[%clk 00:07:59]} {[%emt 00:00:48]} f5
{[%clk 00:06:50]} {[%emt 00:00:30]} 24. Rg3 {[%clk 00:07:10]} {[%emt 00:00:55]}
Qh6 {[%clk 00:06:23]} {[%emt 00:00:31]} 25. c4 {[%clk 00:06:26]} {[%emt
00:00:50]} Rac8 {[%clk 00:05:46]} {[%emt 00:00:40]} 26. Qb2+ {[%clk 00:05:57]}
{[%emt 00:00:35]} Kg8 {[%clk 00:05:05]} {[%emt 00:00:46]} 27. cxd5 {[%clk
00:05:22]} {[%emt 00:00:40]} b5 {[%clk 00:03:52]} {[%emt 00:01:18]} 28. Rh3
{[%clk 00:04:37]} {[%emt 00:00:50]} Qg5 {[%clk 00:03:38]} {[%emt 00:00:19]} 29.
Qe5 {[%clk 00:04:01]} {[%emt 00:00:42]} Rfe8 {[%clk 00:02:47]} {[%emt
00:00:56]} 30. Qf4 {[%clk 00:03:18]} {[%emt 00:00:48]} Qe7 {[%clk 00:02:22]}
{[%emt 00:00:29]} 31. d6 {[%clk 00:03:10]} {[%emt 00:00:14]} Qd7 {[%clk
00:02:04]} {[%emt 00:00:23]} 32. Nb3 {[%clk 00:02:45]} {[%emt 00:00:30]} Rc2
{[%clk 00:01:40]} {[%emt 00:00:28]} 33. Nd4 {[%clk 00:02:15]} {[%emt 00:00:36]}
Rxa2 {[%clk 00:01:08]} {[%emt 00:00:37]} 34. Rc1 {[%clk 00:02:04]} {[%emt
00:00:16]} Bb6 {[%clk 00:00:50]} {[%emt 00:00:22]} 35. Nc6 {[%clk 00:01:16]}
{[%emt 00:00:53]} Kh8 {[%clk 00:00:20]} {[%emt 00:00:34]} 36. Ne7 {[%clk
00:01:12]} {[%emt 00:00:09]} Rxe7 {[%clk 00:00:14]} {[%emt 00:00:11]} 37. dxe7
{[%clk 00:01:04]} {[%emt 00:00:13]} Bc7 {[%clk 00:00:10]} {[%emt 00:00:09]} 38.
Rxc7 {[%clk 00:00:57]} {[%emt 00:00:11]} 1-0

[Event "The Schackveckan 2023: Göteborg open"]
[Site "Göteborgs schackcentrum, Vegagatan 20, Gothenburg, Sweden"]
[Date "2023.08.11"]
[Round "2.15"]
[White "Andersson, Stig"]
[Black "Hallberg, Kristjan"]
[Result "1-0"]
[TimeControl "15 minutes + 5 seconds per move from move one (Round 1 - 4) / 90 minutes + 30 seconds per move from move one (Round 5 - 8)"]
[WhiteFideId "1731971"]
[BlackFideId "1717499"]
[WhiteElo "1811"]
[BlackElo "1592"]

1. e4 {[%clk 00:15:06]} {[%emt 00:00:03]} c5 {[%clk 00:15:06]} {[%emt
00:00:04]} 2. Nf3 {[%clk 00:14:28]} {[%emt 00:00:44]} Nc6 {[%clk 00:14:55]}
{[%emt 00:00:16]} 3. Bc4 {[%clk 00:14:06]} {[%emt 00:00:27]} d6 {[%clk
00:14:46]} {[%emt 00:00:15]} 4. h3 {[%clk 00:14:06]} {[%emt 00:00:04]} Nf6
{[%clk 00:14:39]} {[%emt 00:00:11]} 5. Nc3 {[%clk 00:14:07]} {[%emt 00:00:05]}
e6 {[%clk 00:14:19]} {[%emt 00:00:24]} 6. O-O {[%clk 00:14:03]} {[%emt
00:00:09]} Be7 {[%clk 00:14:20]} {[%emt 00:00:05]} 7. Re1 {[%clk 00:13:35]}
{[%emt 00:00:33]} O-O {[%clk 00:13:14]} {[%emt 00:01:12]} 8. Bf1 {[%clk
00:13:37]} {[%emt 00:00:03]} Nd4 {[%clk 00:12:34]} {[%emt 00:00:44]} 9. Nb1
{[%clk 00:13:27]} {[%emt 00:00:15]} a6 {[%clk 00:12:18]} {[%emt 00:00:22]} 10.
c3 {[%clk 00:13:29]} {[%emt 00:00:03]} Nxf3+ {[%clk 00:12:13]} {[%emt
00:00:10]} 11. Qxf3 {[%clk 00:13:28]} {[%emt 00:00:06]} Qc7 {[%clk 00:11:59]}
{[%emt 00:00:20]} 12. d4 {[%clk 00:13:27]} {[%emt 00:00:05]} d5 {[%clk
00:11:02]} {[%emt 00:01:02]} 13. e5 {[%clk 00:13:08]} {[%emt 00:00:23]} Ne4
{[%clk 00:10:14]} {[%emt 00:00:53]} 14. Nd2 {[%clk 00:13:09]} {[%emt 00:00:04]}
Nxd2 {[%clk 00:10:10]} {[%emt 00:00:10]} 15. Bxd2 {[%clk 00:13:11]} {[%emt
00:00:03]} Bd7 {[%clk 00:09:37]} {[%emt 00:00:38]} 16. Bd3 {[%clk 00:13:11]}
{[%emt 00:00:05]} f5 {[%clk 00:09:16]} {[%emt 00:00:26]} 17. exf6 {[%clk
00:12:45]} {[%emt 00:00:31]} Bxf6 {[%clk 00:09:03]} {[%emt 00:00:17]} 18. Bf4
{[%clk 00:11:48]} {[%emt 00:01:03]} Qb6 {[%clk 00:09:04]} {[%emt 00:00:05]} 19.
Qg3 {[%clk 00:10:25]} {[%emt 00:01:28]} Rae8 {[%clk 00:07:29]} {[%emt
00:01:36]} 20. dxc5 {[%clk 00:09:53]} {[%emt 00:00:40]} Qxc5 {[%clk 00:07:31]}
{[%emt 00:00:03]} 21. Bd6 {[%clk 00:09:52]} {[%emt 00:00:05]} Qb6 {[%clk
00:07:23]} {[%emt 00:00:13]} 22. Bxf8 {[%clk 00:09:53]} {[%emt 00:00:05]} Rxf8
{[%clk 00:07:26]} {[%emt 00:00:02]} 23. Rab1 {[%clk 00:09:37]} {[%emt
00:00:21]} e5 {[%clk 00:07:05]} {[%emt 00:00:26]} 24. Rf1 {[%clk 00:08:37]}
{[%emt 00:01:04]} e4 {[%clk 00:06:45]} {[%emt 00:00:25]} 25. Be2 {[%clk
00:08:38]} {[%emt 00:00:04]} Qe6 {[%clk 00:06:27]} {[%emt 00:00:23]} 26. Bg4
{[%clk 00:08:11]} {[%emt 00:00:32]} Qe7 {[%clk 00:06:31]} {[%emt 00:00:02]} 27.
Bxd7 {[%clk 00:07:48]} {[%emt 00:00:29]} Qxd7 {[%clk 00:06:34]} {[%emt
00:00:01]} 28. Rbd1 {[%clk 00:07:45]} {[%emt 00:00:07]} Qb5 {[%clk 00:06:17]}
{[%emt 00:00:23]} 29. Rd2 {[%clk 00:07:20]} {[%emt 00:00:30]} Qc4 {[%clk
00:05:31]} {[%emt 00:00:50]} 30. a3 {[%clk 00:07:17]} {[%emt 00:00:09]} Qb3
{[%clk 00:05:03]} {[%emt 00:00:33]} 31. Rfd1 {[%clk 00:07:13]} {[%emt
00:00:08]} Rd8 {[%clk 00:04:37]} {[%emt 00:00:31]} 32. Qg4 {[%clk 00:07:09]}
{[%emt 00:00:09]} Rd6 {[%clk 00:04:00]} {[%emt 00:00:42]} 33. Qc8+ {[%clk
00:06:28]} {[%emt 00:00:46]} Rd8 {[%clk 00:03:58]} {[%emt 00:00:07]} 34. Qc5
{[%clk 00:06:25]} {[%emt 00:00:07]} b6 {[%clk 00:03:36]} {[%emt 00:00:30]} 35.
Qb4 {[%clk 00:06:21]} {[%emt 00:00:09]} Qxb4 {[%clk 00:03:13]} {[%emt
00:00:27]} 36. axb4 {[%clk 00:06:23]} {[%emt 00:00:02]} a5 {[%clk 00:02:30]}
{[%emt 00:00:50]} 37. bxa5 {[%clk 00:06:17]} {[%emt 00:00:10]} bxa5 {[%clk
00:02:33]} {[%emt 00:00:04]} 38. Rxd5 {[%clk 00:06:16]} {[%emt 00:00:05]} Rb8
{[%clk 00:02:27]} {[%emt 00:00:10]} 39. R1d2 {[%clk 00:06:00]} {[%emt
00:00:21]} a4 {[%clk 00:02:16]} {[%emt 00:00:17]} 40. Re2 {[%emt 00:01:36]} Rc8
{[%emt 00:00:03]} 41. Red2 {[%clk 00:05:46]} 1-0

[Event "The Schackveckan 2023: Göteborg open"]
[Site "Göteborgs schackcentrum, Vegagatan 20, Gothenburg, Sweden"]
[Date "2023.08.11"]
[Round "2.16"]
[White "Al Saab, Ranny"]
[Black "Eldh, Hjalmar"]
[Result "1/2-1/2"]
[TimeControl "15 minutes + 5 seconds per move from move one (Round 1 - 4) / 90 minutes + 30 seconds per move from move one (Round 5 - 8)"]
[WhiteFideId "1768360"]
[BlackFideId "1767968"]
[WhiteElo "1598"]
[BlackElo "1738"]

1. e4 {[%clk 00:15:08]} {[%emt 00:00:01]} e5 {[%clk 00:15:09]} {[%emt
00:00:02]} 2. Nf3 {[%clk 00:15:12]} {[%emt 00:00:01]} Nc6 {[%clk 00:15:13]}
{[%emt 00:00:01]} 3. Bc4 {[%clk 00:15:14]} {[%emt 00:00:02]} Bc5 {[%clk
00:15:14]} {[%emt 00:00:04]} 4. O-O {[%clk 00:15:06]} {[%emt 00:00:14]} Nf6
{[%clk 00:15:12]} {[%emt 00:00:06]} 5. d3 {[%clk 00:15:09]} {[%emt 00:00:02]}
h6 {[%clk 00:15:15]} {[%emt 00:00:02]} 6. Nc3 {[%clk 00:15:09]} {[%emt
00:00:05]} O-O {[%clk 00:15:10]} {[%emt 00:00:10]} 7. h3 {[%clk 00:15:03]}
{[%emt 00:00:11]} a6 {[%clk 00:15:05]} {[%emt 00:00:10]} 8. Be3 {[%clk
00:14:58]} {[%emt 00:00:11]} Bxe3 {[%clk 00:14:48]} {[%emt 00:00:21]} 9. fxe3
{[%clk 00:15:01]} {[%emt 00:00:02]} d6 {[%clk 00:14:47]} {[%emt 00:00:06]} 10.
d4 {[%clk 00:14:52]} {[%emt 00:00:15]} Qe7 {[%clk 00:14:16]} {[%emt 00:00:36]}
11. Nd5 {[%clk 00:14:13]} {[%emt 00:00:44]} Nxd5 {[%clk 00:14:11]} {[%emt
00:00:09]} 12. Bxd5 {[%clk 00:14:17]} {[%emt 00:00:02]} Nd8 {[%clk 00:14:05]}
{[%emt 00:00:11]} 13. Qe2 {[%clk 00:13:47]} {[%emt 00:00:34]} c6 {[%clk
00:13:56]} {[%emt 00:00:15]} 14. Bb3 {[%clk 00:13:50]} {[%emt 00:00:01]} Be6
{[%clk 00:13:19]} {[%emt 00:00:42]} 15. c4 {[%clk 00:12:38]} {[%emt 00:01:18]}
Bd7 {[%clk 00:12:04]} {[%emt 00:01:20]} 16. a4 {[%clk 00:11:46]} {[%emt
00:00:57]} c5 {[%clk 00:11:58]} {[%emt 00:00:10]} 17. d5 {[%clk 00:11:36]}
{[%emt 00:00:15]} f5 {[%clk 00:11:47]} {[%emt 00:00:16]} 18. exf5 {[%clk
00:11:22]} {[%emt 00:00:20]} Bxf5 {[%clk 00:11:45]} {[%emt 00:00:07]} 19. e4
{[%clk 00:11:12]} {[%emt 00:00:15]} Bh7 {[%clk 00:11:23]} {[%emt 00:00:25]} 20.
Nd2 {[%clk 00:10:27]} {[%emt 00:00:52]} Nf7 {[%clk 00:11:20]} {[%emt 00:00:08]}
21. Bc2 {[%clk 00:09:48]} {[%emt 00:00:41]} Ng5 {[%clk 00:11:12]} {[%emt
00:00:15]} 22. Ra3 {[%clk 00:08:59]} {[%emt 00:00:54]} Rxf1+ {[%clk 00:11:08]}
{[%emt 00:00:10]} 23. Kxf1 {[%clk 00:08:16]} {[%emt 00:00:49]} Rf8+ {[%clk
00:11:01]} {[%emt 00:00:10]} 24. Kg1 {[%clk 00:08:05]} {[%emt 00:00:17]} Rf4
{[%clk 00:10:28]} {[%emt 00:00:38]} 25. Rb3 {[%clk 00:07:31]} {[%emt 00:00:40]}
Kf8 {[%clk 00:10:15]} {[%emt 00:00:15]} 26. Rb6 {[%clk 00:06:24]} {[%emt
00:01:13]} Ke8 {[%clk 00:10:07]} {[%emt 00:00:13]} 27. b4 {[%clk 00:06:00]}
{[%emt 00:00:30]} Qc7 {[%clk 00:10:01]} {[%emt 00:00:11]} 28. a5 {[%clk
00:04:36]} {[%emt 00:01:29]} cxb4 {[%clk 00:10:01]} {[%emt 00:00:05]} 29. Kh2
{[%clk 00:04:23]} {[%emt 00:00:14]} Kd8 {[%clk 00:09:46]} {[%emt 00:00:24]} 30.
Rxb4 {[%clk 00:03:48]} {[%emt 00:00:39]} Kc8 {[%clk 00:09:45]} {[%emt
00:00:06]} 31. g3 {[%clk 00:03:23]} {[%emt 00:00:30]} Rf6 {[%clk 00:09:32]}
{[%emt 00:00:14]} 32. h4 {[%clk 00:02:57]} {[%emt 00:00:35]} Nf7 {[%clk
00:08:42]} {[%emt 00:00:56]} 33. Ra4 {[%clk 00:02:23]} {[%emt 00:00:40]} Qc5
{[%clk 00:08:37]} {[%emt 00:00:10]} 34. Kg2 {[%clk 00:01:54]} {[%emt 00:00:33]}
h5 {[%clk 00:07:54]} {[%emt 00:00:49]} 35. Nb3 {[%clk 00:01:21]} {[%emt
00:00:35]} Qa7 {[%clk 00:07:41]} {[%emt 00:00:21]} 36. Rb4 {[%clk 00:01:07]}
{[%emt 00:00:18]} Nh6 {[%clk 00:07:33]} {[%emt 00:00:13]} 37. Rb6 {[%clk
00:00:55]} {[%emt 00:00:18]} Ng4 {[%clk 00:07:34]} {[%emt 00:00:03]} 38. Qd3
{[%clk 00:00:40]} {[%emt 00:00:11]} Rf2+ {[%clk 00:07:38]} {[%emt 00:00:11]} 39.
Kh1 {[%clk 00:00:35]} {[%emt 00:00:05]} Rf4 {[%clk 00:07:01]} {[%emt 00:00:46]}
40. Kg1 {[%clk 00:00:35]} {[%emt 00:00:03]} Rxe4 {[%clk 00:06:58]} {[%emt
00:00:10]} 41. Qf3 {[%clk 00:00:19]} {[%emt 00:00:22]} Re1+ {[%clk 00:06:58]}
{[%emt 00:00:04]} 42. Kg2 {[%clk 00:00:19]} {[%emt 00:00:03]} Ne3+ {[%clk
00:06:32]} {[%emt 00:00:33]} 43. Kh2 {[%clk 00:00:11]} {[%emt 00:00:07]} Rf1
{[%clk 00:04:35]} {[%emt 00:02:08]} 44. Qxh5 {[%clk 00:00:12]} {[%emt
00:00:05]} Rf2+ {[%clk 00:04:12]} {[%emt 00:00:26]} 45. Kh3 {[%clk 00:00:14]}
{[%emt 00:00:03]} Bxc2 {[%clk 00:00:57]} {[%emt 00:03:21]} 46. Qe8+ {[%clk
00:00:17]} {[%emt 00:00:01]} Kc7 {[%clk 00:01:01]} {[%emt 00:00:01]} 47. Qe7+
{[%clk 00:00:19]} {[%emt 00:00:03]} Kc8 {[%clk 00:01:05]} 48. Qe8+ {[%clk
00:00:23]} {[%emt 00:00:02]} Kc7 {[%emt 00:00:01]} 1/2-1/2

[Event "The Schackveckan 2023: Göteborg open"]
[Site "Göteborgs schackcentrum, Vegagatan 20, Gothenburg, Sweden"]
[Date "2023.08.11"]
[Round "2.17"]
[White "Bergholtz, Karl"]
[Black "Wennerlund, Elias"]
[Result "0-1"]
[TimeControl "15 minutes + 5 seconds per move from move one (Round 1 - 4) / 90 minutes + 30 seconds per move from move one (Round 5 - 8)"]
[WhiteFideId "1756141"]
[BlackFideId "1742353"]
[WhiteElo "1521"]
[BlackElo "1710"]

1. e4 {[%clk 00:15:07]} {[%emt 00:00:02]} Nf6 {[%clk 00:15:05]} {[%emt
00:00:05]} 2. Nc3 {[%clk 00:15:06]} {[%emt 00:00:06]} d5 {[%clk 00:15:08]}
{[%emt 00:00:02]} 3. exd5 {[%clk 00:14:20]} {[%emt 00:00:51]} Nxd5 {[%clk
00:15:12]} {[%emt 00:00:02]} 4. Qf3 {[%clk 00:13:55]} {[%emt 00:00:30]} c6
{[%clk 00:14:45]} {[%emt 00:00:32]} 5. Bc4 {[%clk 00:13:50]} {[%emt 00:00:11]}
e6 {[%clk 00:14:33]} {[%emt 00:00:17]} 6. Nge2 {[%clk 00:13:49]} {[%emt
00:00:05]} Be7 {[%clk 00:14:15]} {[%emt 00:00:23]} 7. O-O {[%clk 00:13:34]}
{[%emt 00:00:19]} Nd7 {[%clk 00:14:10]} {[%emt 00:00:11]} 8. Bb3 {[%clk
00:13:36]} {[%emt 00:00:04]} O-O {[%clk 00:12:50]} {[%emt 00:01:24]} 9. d3
{[%clk 00:13:39]} {[%emt 00:00:02]} Ne5 {[%clk 00:12:49]} {[%emt 00:00:06]} 10.
Qe4 {[%clk 00:12:32]} {[%emt 00:01:13]} Bf6 {[%clk 00:12:18]} {[%emt 00:00:35]}
11. f4 {[%clk 00:10:47]} {[%emt 00:01:51]} Ng6 {[%clk 00:12:03]} {[%emt
00:00:20]} 12. g4 {[%clk 00:09:01]} {[%emt 00:01:50]} Nxc3 {[%clk 00:10:28]}
{[%emt 00:01:40]} 13. bxc3 {[%clk 00:09:04]} {[%emt 00:00:02]} Re8 {[%clk
00:08:44]} {[%emt 00:01:49]} 14. g5 {[%clk 00:08:48]} {[%emt 00:00:21]} Be7
{[%clk 00:08:43]} {[%emt 00:00:06]} 15. Bb2 {[%clk 00:08:19]} {[%emt 00:00:34]}
a5 {[%clk 00:08:27]} {[%emt 00:00:22]} 16. a4 {[%clk 00:07:55]} {[%emt
00:00:29]} Bf8 {[%clk 00:08:25]} {[%emt 00:00:07]} 17. Ng3 {[%clk 00:07:19]}
{[%emt 00:00:40]} Nh4 {[%clk 00:06:39]} {[%emt 00:01:50]} 18. Rae1 {[%clk
00:07:13]} {[%emt 00:00:11]} Bd7 {[%clk 00:06:10]} {[%emt 00:00:36]} 19. Nh5
{[%clk 00:06:16]} {[%emt 00:01:01]} Nf5 {[%clk 00:06:05]} {[%emt 00:00:10]} 20.
c4 {[%clk 00:05:43]} {[%emt 00:00:38]} Qb6+ {[%clk 00:05:21]} {[%emt 00:00:50]}
21. Kg2 {[%clk 00:01:31]} {[%emt 00:04:16]} c5 {[%clk 00:05:17]} {[%emt
00:00:09]} 22. Kh3 {[%clk 00:01:21]} {[%emt 00:00:15]} Bc6 {[%clk 00:04:44]}
{[%emt 00:00:40]} 23. Qe5 {[%clk 00:01:11]} {[%emt 00:00:13]} Nd4 {[%clk
00:04:29]} {[%emt 00:00:21]} 24. Rb1 {[%clk 00:00:24]} {[%emt 00:00:51]} Rad8
{[%clk 00:04:10]} {[%emt 00:00:24]} 25. Ba1 {[%clk 00:00:12]} {[%emt 00:00:17]}
Bf3 {[%clk 00:01:40]} {[%emt 00:02:35]} 26. Rxf3 {[%clk 00:00:07]} {[%emt
00:00:10]} Nxf3 {[%clk 00:01:40]} {[%emt 00:00:05]} 27. Qe3 {[%clk 00:00:11]}
{[%emt 00:00:01]} Qc6 {[%clk 00:01:32]} {[%emt 00:00:14]} 28. Nf6+ {[%clk
00:00:13]} {[%emt 00:00:02]} gxf6 {[%clk 00:00:46]} {[%emt 00:00:51]} 29. gxf6
{[%clk 00:00:13]} {[%emt 00:00:04]} Kh8 {[%clk 00:00:27]} {[%emt 00:00:24]} 30.
Rf1 {[%clk 00:00:17]} Nd4 {[%clk 00:00:27]} {[%emt 00:00:05]} 31. Rg1 {[%clk
00:00:18]} {[%emt 00:00:04]} Bh6 {[%clk 00:00:23]} {[%emt 00:00:10]} 32. Qe5
{[%clk 00:00:17]} {[%emt 00:00:06]} Rg8 {[%clk 00:00:20]} {[%emt 00:00:08]} 33.
Rxg8+ {[%clk 00:00:20]} {[%emt 00:00:02]} Rxg8 {[%clk 00:00:23]} {[%emt
00:00:01]} 34. Bxd4 {[%clk 00:00:21]} {[%emt 00:00:05]} Qf3+ {[%clk 00:00:24]}
{[%emt 00:00:04]} 0-1

[Event "The Schackveckan 2023: Göteborg open"]
[Site "Göteborgs schackcentrum, Vegagatan 20, Gothenburg, Sweden"]
[Date "2023.08.11"]
[Round "3.1"]
[White "Bjorklund, Thomas"]
[Black "Hector, Jonny"]
[Result "1-0"]
[TimeControl "15 minutes + 5 seconds per move from move one (Round 1 - 4) / 90 minutes + 30 seconds per move from move one (Round 5 - 8)"]
[BlackTitle "GM"]
[WhiteFideId "1724576"]
[BlackFideId "1700090"]
[WhiteElo "2139"]
[BlackElo "2466"]

1. e4 {[%clk 00:15:08]} {[%emt 00:00:02]} e5 {[%clk 00:15:08]} {[%emt
00:00:02]} 2. Nf3 {[%clk 00:15:12]} {[%emt 00:00:01]} Nc6 {[%clk 00:15:12]}
{[%emt 00:00:01]} 3. Bc4 {[%clk 00:15:17]} {[%emt 00:00:02]} Nf6 {[%clk
00:15:13]} {[%emt 00:00:03]} 4. d3 {[%clk 00:15:21]} d5 {[%clk 00:15:15]}
{[%emt 00:00:02]} 5. exd5 {[%clk 00:15:24]} {[%emt 00:00:02]} Nxd5 {[%clk
00:15:18]} {[%emt 00:00:02]} 6. O-O {[%clk 00:15:26]} {[%emt 00:00:03]} Nb6
{[%clk 00:15:21]} {[%emt 00:00:02]} 7. Bb3 {[%clk 00:15:30]} {[%emt 00:00:02]}
Bg4 {[%clk 00:15:23]} {[%emt 00:00:03]} 8. Re1 {[%clk 00:15:27]} {[%emt
00:00:08]} Bd6 {[%clk 00:15:20]} {[%emt 00:00:07]} 9. Nxe5 {[%clk 00:14:23]}
{[%emt 00:01:09]} Nxe5 {[%clk 00:13:24]} {[%emt 00:02:00]} 10. Qxg4 {[%clk
00:14:21]} {[%emt 00:00:08]} O-O {[%clk 00:13:26]} {[%emt 00:00:02]} 11. Qh3
{[%clk 00:14:01]} {[%emt 00:00:26]} a5 {[%clk 00:12:25]} {[%emt 00:01:06]} 12.
a4 {[%clk 00:13:18]} {[%emt 00:00:49]} c6 {[%clk 00:10:58]} {[%emt 00:01:31]}
13. Nc3 {[%clk 00:13:02]} {[%emt 00:00:21]} Bc7 {[%clk 00:09:29]} {[%emt
00:01:34]} 14. Be3 {[%clk 00:12:42]} {[%emt 00:00:25]} Ng6 {[%clk 00:09:05]}
{[%emt 00:00:29]} 15. Ne4 {[%clk 00:12:14]} {[%emt 00:00:33]} Nd5 {[%clk
00:09:01]} {[%emt 00:00:09]} 16. Ng5 {[%clk 00:09:49]} {[%emt 00:02:31]} h6
{[%clk 00:08:50]} {[%emt 00:00:13]} 17. Nf3 {[%clk 00:09:13]} {[%emt 00:00:42]}
Ngf4 {[%clk 00:06:59]} {[%emt 00:01:56]} 18. Bxf4 {[%clk 00:08:57]} {[%emt
00:00:23]} Nxf4 {[%clk 00:06:56]} {[%emt 00:00:06]} 19. Qf5 {[%clk 00:08:33]}
{[%emt 00:00:29]} g6 {[%clk 00:06:53]} {[%emt 00:00:08]} 20. Qe4 {[%clk
00:08:02]} {[%emt 00:00:37]} Bd6 {[%clk 00:05:41]} {[%emt 00:01:16]} 21. g3
{[%clk 00:07:20]} {[%emt 00:00:47]} Nd5 {[%clk 00:05:19]} {[%emt 00:00:29]} 22.
Bxd5 {[%clk 00:07:11]} {[%emt 00:00:14]} cxd5 {[%clk 00:05:21]} {[%emt
00:00:02]} 23. Qxd5 {[%clk 00:07:04]} {[%emt 00:00:12]} Qf6 {[%clk 00:05:19]}
{[%emt 00:00:06]} 24. Kg2 {[%clk 00:06:43]} {[%emt 00:00:26]} Rfd8 {[%clk
00:04:58]} {[%emt 00:00:26]} 25. Qb3 {[%clk 00:06:09]} {[%emt 00:00:40]} Bb4
{[%clk 00:04:39]} {[%emt 00:00:24]} 26. Re4 {[%clk 00:06:09]} {[%emt 00:00:05]}
g5 {[%clk 00:04:18]} {[%emt 00:00:23]} 27. h3 {[%clk 00:06:09]} {[%emt
00:00:07]} Kg7 {[%clk 00:04:16]} {[%emt 00:00:07]} 28. Rf1 {[%clk 00:05:43]}
{[%emt 00:00:32]} Ra6 {[%clk 00:04:14]} {[%emt 00:00:07]} 29. Ne5 {[%clk
00:05:40]} {[%emt 00:00:08]} Rb6 {[%clk 00:03:12]} {[%emt 00:01:08]} 30. f4
{[%clk 00:04:59]} {[%emt 00:00:45]} Bd2 {[%clk 00:02:29]} {[%emt 00:00:48]} 31.
fxg5 {[%clk 00:04:04]} {[%emt 00:01:00]} Qxf1+ {[%clk 00:02:32]} {[%emt
00:00:01]} 32. Kxf1 {[%clk 00:04:09]} {[%emt 00:00:01]} Rxb3 {[%clk 00:02:35]}
{[%emt 00:00:02]} 33. cxb3 {[%clk 00:04:12]} {[%emt 00:00:02]} hxg5 {[%clk
00:02:34]} {[%emt 00:00:06]} 34. Ke2 {[%clk 00:04:07]} {[%emt 00:00:10]} f5
{[%clk 00:02:05]} {[%emt 00:00:33]} 35. Rc4 {[%clk 00:03:54]} {[%emt 00:00:18]}
Bb4 {[%clk 00:02:08]} {[%emt 00:00:04]} 36. Rc7+ {[%clk 00:02:53]} {[%emt
00:01:04]} Kf6 {[%clk 00:02:12]} {[%emt 00:00:02]} 37. Nc4 {[%clk 00:02:56]}
{[%emt 00:00:02]} Rh8 {[%clk 00:01:56]} {[%emt 00:00:21]} 38. h4 {[%clk
00:02:50]} {[%emt 00:00:11]} gxh4 {[%clk 00:01:59]} {[%emt 00:00:02]} 39. gxh4
{[%clk 00:02:54]} Rxh4 {[%clk 00:02:03]} 40. Rxb7 {[%clk 00:02:57]} {[%emt
00:00:03]} Rh2+ {[%clk 00:01:43]} {[%emt 00:00:24]} 41. Kf3 {[%clk 00:02:52]}
{[%emt 00:00:10]} Rh3+ {[%clk 00:01:44]} {[%emt 00:00:03]} 42. Ke2 {[%clk
00:02:48]} {[%emt 00:00:10]} Rh2+ {[%clk 00:01:39]} {[%emt 00:00:10]} 43. Kf1
{[%clk 00:02:30]} {[%emt 00:00:22]} f4 {[%clk 00:01:42]} {[%emt 00:00:02]} 44.
Rb5 {[%clk 00:02:30]} {[%emt 00:00:05]} f3 {[%clk 00:01:28]} {[%emt 00:00:20]}
45. Ne3 {[%clk 00:02:01]} {[%emt 00:00:34]} Rxb2 {[%clk 00:01:17]} {[%emt
00:00:15]} 46. Nd5+ {[%clk 00:02:02]} {[%emt 00:00:04]} Ke6 {[%clk 00:01:15]}
{[%emt 00:00:07]} 47. Nxb4 {[%clk 00:02:05]} {[%emt 00:00:03]} axb4 {[%clk
00:01:19]} {[%emt 00:00:01]} 48. Rxb4 {[%clk 00:02:09]} {[%emt 00:00:01]} Kf5
{[%clk 00:01:22]} {[%emt 00:00:02]} 49. a5 {[%clk 00:02:08]} {[%emt 00:00:06]}
Ra2 {[%clk 00:01:17]} {[%emt 00:00:10]} 50. Ra4 {[%clk 00:02:10]} {[%emt
00:00:03]} Rd2 {[%clk 00:01:15]} {[%emt 00:00:07]} 51. a6 {[%clk 00:02:07]}
{[%emt 00:00:08]} 1-0